[Event "Slovakian ECo-C Extraliga 2024-25"]
[Site "Slovakia"]
[Date "2025.01.19"]
[Round "4.8"]
[White "Cajka, Tibor"]
[Black "Sklars, Tomas"]
[Result "1-0"]
[Annotator "TA"]
[ECO "B50"]
[WhiteElo "2210"]
[BlackElo "1917"]
[PlyCount "73"]
[EventDate "2024.09.12"]
[EventType "team-tourn"]
[EventCountry "SVK"]
[SourceTitle "playchess.com"]
[Source "ChessBase"]
[SourceQuality "1"]
[TimeControl "5400+30"]

{[%evp 9,73,27,80,78,72,78,74,62,80,45,47,29,45,33,46,11,9,15,50,0,2,0,5,4,8,0,0,0,12,0,12,0,19,0,0,0,0,0,25,25,25,0,16,26,97,71,214,225,363,285,326,354,364,357,345,315,1075,1200,1206,1205,1144,1145,982,1028,29969,1969]} 1. e4 {[%emt 0:01:07]} c5 {[%emt 0:00:08]} 2. Nf3 {[%emt 0:00:28]} d6 {[%emt 0:00:08]} 3. c3 {[%emt 0:00:54]} Nf6 {[%emt 0:02:00]} 4. Be2 {[%emt 0:00:56]} Nc6 {[%emt 0:02:27]} 5. d4 {[%emt 0:00:09][%cal Bd2d4,Bd4d5][%mdl 32]} Qc7 {[%emt 0:15:48]} (5... cxd4 $11 6. Nxd4 Nxe4) 6. d5 $16 {[%emt 0:03:55]} Ne5 {[%emt 0:01:00]} 7. Nxe5 {[%emt 0:00:06]} dxe5 {[%emt 0:00:10]} 8. Bg5 {[%emt 0:04:21]} a6 {[%emt 0:07:24]} 9. Bxf6 {[%emt 0:03:43]} exf6 {[%emt 0:01:23] Black is weak on the light squares} 10. Nd2 {[%emt 0:06:28]} f5 {[%emt 0:04:30]} 11. O-O {[%emt 0:10:56]} fxe4 {[%emt 0:09:42]} 12. Qa4+ {[%emt 0:09:09]} Bd7 {[%emt 0:01:50]} 13. Qxe4 {[%emt 0:00:09] Hoping for f4.} f5 {[%emt 0:03:33]} 14. Qe3 {[%emt 0:03:34]} (14. Qh4 $14 Be7 15. Bh5+ Kf8 16. Qh3) 14... Bd6 $11 {[%emt 0:02:14]} 15. Nc4 {[%emt 0:10:33]} O-O {[%emt 0:02:55]} 16. Nxd6 {[%emt 0:06:00]} Qxd6 {[%emt 0:03:34]} 17. f4 {[%emt 0:02:05]} e4 {[%emt 0:06:33]} 18. c4 {[%emt 0:03:56]} b5 {[%emt 0:02:37]} 19. Qc3 {[%emt 0:02:57]} Rfe8 {[%emt 0:06:32]} 20. b3 {[%emt 0:04:12]} b4 {[%emt 0:01:39]} 21. Qb2 {[%emt 0:00:42]} a5 {[%emt 0:02:11]} 22. a4 {[%emt 0:01:18]} Ra6 {[%emt 0:05:59][%cal Ba8a6,Ba6f6,Bf6g6][%mdl 32]} 23. Rae1 {[%emt 0:04:20]} Qf6 {[%emt 0:04:50]} 24. Qxf6 {[%emt 0:00:48]} Rxf6 {[%emt 0:00:09]} 25. Kf2 {[%emt 0:00:51]} h6 {[%emt 0:02:36][%cal Bh7h6,Bh6g5][%mdl 32]} 26. Ke3 {[%emt 0:02:06]} g5 {[%emt 0:01:22]} (26... Ref8 $11 {keeps the balance.}) 27. g4 {[%emt 0:02:10]} Ref8 {[%emt 0:07:35] [#]} (27... fxg4 $16 {keeps fighting.} 28. fxg5 Rg6 (28... Rxf1 29. Rxf1 hxg5 30. Rg1 $16)) 28. gxf5 $1 $18 {[%emt 0:03:39]} Bxf5 {[%emt 0:01:06]} (28... Rxf5 $142 29. fxg5 (29. Kxe4 Re8+ 30. Kd3 Rxf4 $15) 29... Rxg5 30. Rxf8+ (30. Kxe4 Bf5+ 31. Ke3 Kg7 $16) 30... Kxf8 31. Kxe4 Ke7) 29. Rg1 {[%emt 0:02:01]} Rg6 {[%emt 0:00:51] [#]} 30. fxg5 $1 {[%emt 0:00:51]} hxg5 {[%emt 0:00:23]} 31. Ref1 {[%emt 0:01:06]} Rg7 {[%emt 0:01:58]} 32. Bg4 {[%emt 0:00:59]} Rgf7 $2 {[%emt 0:00:43]} (32... Bxg4 33. Rxf8+ Kxf8 34. Rxg4 Rh7 35. Kxe4 (35. Rxg5 Ke7 $18) 35... Ke7) 33. Bxf5 {[%emt 0:00:47]} Rxf5 {[%emt 0:00:02]} 34. Rxf5 {[%emt 0:00:06]} Rxf5 {[%emt 0:00:19]} 35. Kxe4 {[%emt 0:00:04]} Rf4+ {[%emt 0:00:36]} 36. Ke5 {[%emt 0:00:07]} Rf3 {[%emt 0:00:55]} 37. Rg3 {[%emt 0:00:08]} (37. Rxg5+ $142 Kh7 38. Rg3 Rf2 39. d6 Rxh2 40. Kd5 Rd2+ 41. Kc6 (41. Kxc5 Kh6 $18) 41... Rf2 42. d7 (42. Kxc5 Kh6 $18)) 1-0

[Event "Slovakian ECo-C Extraliga 2024-25"]
[Site "Slovakia"]
[Date "2025.01.19"]
[Round "4.8"]
[White "Vadila, Ondrej"]
[Black "Bombek, Peter"]
[Result "*"]
[Annotator "TA"]
[ECO "B22"]
[WhiteElo "2198"]
[BlackElo "2047"]
[PlyCount "31"]
[EventDate "2024.09.12"]
[EventType "team-tourn"]
[EventCountry "SVK"]
[SourceTitle "playchess.com"]
[Source "ChessBase"]
[SourceQuality "1"]
[TimeControl "5400+30"]

{[%evp 7,12,31,43,30,39,27,38]} 1. e4 {[%emt 0:00:19]} c5 {[%emt 0:00:06]} 2. c3 {[%emt 0:00:04]} d5 {[%emt 0:00:18]} 3. exd5 {[%emt 0:00:12]} Qxd5 {[%emt 0:00:07]} 4. d4 {[%emt 0:00:06]} g6 {[%emt 0:00:12]} 5. Nf3 {[%emt 0:00:47] B06: Modern Defence.} Bg7 {[%emt 0:00:16]} 6. Na3 {[%emt 0:01:26] and Bc4 would now be decisive  OK:         	White=1     	Black=2} cxd4 {[%emt 0:03:37] Weighted Error Value: White=0.00 (flawless) /Black=0.06 (flawless)} 7. Nb5 $146 Na6 8. Be3 Nf6 9. Qxd4 O-O 10. Be2 b6 11. O-O Bb7 12. Qh4 Qc6 13. Nbd4 Qc8 14. Bh6 Nc5 15. Rfe1 a6 16. Ne5 {½-½ Sadhwani,R (2641)-Nakamura,H (2780) FIDE Grand Swiss 2023 (2)} *

[Event "Slovakian ECo-C Extraliga 2024-25"]
[Site "Slovakia"]
[Date "2025.01.19"]
[Round "4.8"]
[White "Kasperek, Ryszard"]
[Black "Krak, Tomas"]
[Result "1-0"]
[Annotator "TA"]
[ECO "B85"]
[WhiteElo "2069"]
[BlackElo "2253"]
[PlyCount "69"]
[EventDate "2024.09.12"]
[EventType "team-tourn"]
[EventCountry "SVK"]
[SourceTitle "playchess.com"]
[Source "ChessBase"]
[SourceQuality "1"]
[TimeControl "5400+30"]

{[%evp 29,69,9,18,0,0,3,4,0,0,-1,-10,-8,19,27,32,27,325,166,169,149,161,48,135,108,455,454,431,435,462,467,485,483,472,475,472,482,1107,1061,935,526,1597,1587]} 1. e4 {[%emt 0:00:02]} c5 {[%emt 0:00:04]} 2. Nf3 {[%emt 0:00:12]} d6 {[%emt 0:00:05]} 3. d4 {[%emt 0:00:30]} cxd4 {[%emt 0:00:06]} 4. Nxd4 {[%emt 0:00:16]} Nc6 {[%emt 0:00:09]} 5. Nc3 {[%emt 0:00:38]} e6 {[%emt 0:00:24]} 6. Be3 {[%emt 0:04:19]} a6 {[%emt 0:00:47]} 7. f4 {[%emt 0:05:08]} Nf6 {[%emt 0:03:27]} 8. Be2 {[%emt 0:05:27]} Qc7 {[%emt 0:01:53]} 9. O-O {[%emt 0:02:13]} Bd7 {[%emt 0:04:41]} 10. a4 {[%emt 0:03:45]} Be7 {[%emt 0:06:45]} 11. Nb3 {[%emt 0:12:40]} b6 {[%emt 0:01:56]} 12. Kh1 {[%emt 0:11:32]} Bc8 {[%emt 0:04:03]} 13. Bf3 {[%emt 0:05:27]} Rb8 {[%emt 0:01:27]} 14. Qe2 {[%emt 0:04:29]} Na5 $146 {[%emt 0:11:30]} (14... Bb7 15. Qc4 Rc8 16. a5 b5 17. Qe2 O-O 18. Bb6 Qb8 19. g4 Rfe8 20. Qg2 Nb4 {1-0 Garcia Almaguer,J (2126)-Shapiro,D (2284) Titled Tuesday intern op 12th Dec Late blitz 2023 (7)}) 15. Nd2 {[%emt 0:05:58]} O-O {[%emt 0:04:00]} 16. g4 {[%emt 0:01:32] B85: Sicilian Scheveningen: 6 Be2 a6, lines with early Be3.} d5 {[%emt 0:07:18]} 17. exd5 {[%emt 0:13:14]} Nxd5 {[%emt 0:00:16]} 18. Nxd5 {[%emt 0:00:32] The position is equal.} exd5 {[%emt 0:00:30]} 19. Bxd5 {[%emt 0:04:16]} Qxc2 {[%emt 0:12:34]} 20. Bd4 {[%emt 0:09:55]} Nc6 {[%emt 0:10:30]} 21. Bc3 {[%emt 0:00:47]} Bb7 {[%emt 0:06:10]} 22. Qg2 {[%emt 0:02:55][%cal Od5e4] Strongly threatening Be4!.} (22. Rfc1 $5 Qg6 $8 (22... Nd4 $2 23. Qc4 $18) 23. Be4 $14) 22... Qg6 {[%emt 0:10:08][%mdl 8192]} (22... Na5 $1 $11 {and Black stays safe.}) 23. Rad1 {[%emt 0:01:45]} (23. f5 $142 Qd6 24. f6 (24. Nc4 Qxd5 25. Qxd5 Nb4 $14) 24... gxf6 (24... Bxf6 $2 25. Rxf6 $18) 25. Rf5 (25. Ne4 $2 Qxd5 26. Nxf6+ Bxf6 $19)) 23... Rbd8 {[%emt 0:04:31][%cal Od8d5] [#]} 24. f5 $1 {[%emt 0:01:12]} Qh6 {[%emt 0:01:53][%cal Od8d5]} 25. Bf3 {[%emt 0:00:29]} (25. g5 $18 Bxg5 26. Ne4 Rxd5 27. Rxd5) 25... Rd3 {[%emt 0:01:19]} (25... b5 $14) 26. Ne4 $36 {[%emt 0:00:43][%mdl 2048] Black is under strong pressure.} Rfd8 {[%emt 0:03:29][%mdl 8192]} (26... Rxd1 $16 {is tougher.} 27. Rxd1 Bb4) 27. Rxd3 $18 {[%emt 0:00:23] White is clearly winning.} Rxd3 {[%emt 0:00:06]} 28. g5 {[%emt 0:00:29]} Qh4 {[%emt 0:00:26] [#]} 29. Nf6+ $1 {[%emt 0:00:20][%mdl 512]} Kf8 {[%emt 0:02:00][%cal Od3f3] and ...Rxf3! would now be decisive} ({Reject} 29... Bxf6 30. gxf6 g5 31. Bxc6) 30. Bxc6 {[%emt 0:00:09][%cal Bf3c6,Bc6b7,Bb7g2][%mdl 32]} Rg3 {[%emt 0:02:11]} 31. Qe4 {[%emt 0:01:49]} (31. Qxg3 Bxc6+ 32. Kg1 Bc5+ 33. Rf2 Qxg3+ 34. hxg3 gxf6 $11) 31... gxf6 {[%emt 0:00:47]} 32. Bxb7 {[%emt 0:00:19]} (32. Qxh4 $2 {gets mated.} Bxc6+) 32... Rg4 {[%emt 0:00:20]} (32... Qxe4+ $142 33. Bxe4 Rxg5) 33. Qe2 {[%emt 0:01:11]} Qxg5 {[%emt 0:00:38]} 34. Bg2 {[%emt 0:01:03]} Rxa4 {[%emt 0:00:11]} 35. Re1 {[%emt 0:00:47] Weighted Error Value: White=0.52/Black=1.02  Loses game:     	---       	Black=2      Mistake:       	White=2     	Black=2      Inaccurate:     	---       	Black=1      OK:         	White=9     	Black=8      Best:        	White=1     	Black=1      Strong:       	White=1     	---} 1-0

[Event "Slovakian ECo-C Extraliga 2024-25"]
[Site "Slovakia"]
[Date "2025.01.19"]
[Round "4.8"]
[White "Bombek, Peter"]
[Black "Vadila, Ondrej"]
[Result "1-0"]
[Annotator "TA"]
[ECO "B22"]
[WhiteElo "2047"]
[BlackElo "2198"]
[PlyCount "45"]
[EventDate "2024.09.12"]
[EventType "team-tourn"]
[EventCountry "SVK"]
[SourceTitle "playchess.com"]
[Source "ChessBase"]
[SourceQuality "1"]
[TimeControl "5400+30"]

{[%evp 11,45,47,22,8,60,22,31,24,40,2,16,0,0,0,11,6,6,0,0,0,0,-9,0,0,0,0,24,0,14,13,18,0,6,9,238,221]} 1. e4 {[%emt 0:00:19]} c5 {[%emt 0:00:06]} 2. c3 {[%emt 0:00:04]} d5 {[%emt 0:00:18]} 3. exd5 {[%emt 0:00:12]} Qxd5 {[%emt 0:00:07]} 4. d4 {[%emt 0:00:06]} g6 {[%emt 0:00:12]} 5. Nf3 {[%emt 0:00:47]} Bg7 {[%emt 0:00:16]} 6. Na3 {[%emt 0:01:26]} cxd4 {[%emt 0:03:37]} 7. Bc4 {[%emt 0:01:00]} Qd8 {[%emt 0:08:15]} ({Black should try} 7... Qe4+ $11 8. Be3 Nh6 (8... dxe3 $2 {perishes.} 9. Bxf7+ Kxf7 10. Ng5+ Ke8 11. Nxe4 $18)) 8. Nb5 {[%emt 0:04:41]} (8. cxd4 Nf6 $11) 8... Nf6 {[%emt 0:08:23]} 9. O-O {[%emt 0:01:40]} ({But not} 9. cxd4 O-O $15) 9... O-O {[%emt 0:00:52]} (9... Nc6 10. Nbxd4 Nxd4 11. Qxd4 Qxd4 12. Nxd4 O-O) 10. Qxd4 {[%emt 0:04:06]} Nc6 {[%emt 0:13:27]} 11. Qh4 {[%emt 0:07:57]} (11. Qxd8 {simplifies} Rxd8 12. Re1 Bf5 13. Bb3) 11... a6 {[%emt 0:02:01]} 12. Nbd4 {[%emt 0:01:11]} Nxd4 {[%emt 0:02:23]} 13. Nxd4 {[%emt 0:04:12]} b5 {[%emt 0:05:19]} 14. Be2 {[%emt 0:02:51]} Bb7 {[%emt 0:01:40]} 15. Rd1 {[%emt 0:04:53][%cal Od4e6,Bf1d1,Bd1d3,Bd3f3][%mdl 32] and Ne6! should not be overlooked} Qc7 {[%emt 0:03:50]} 16. Bh6 {[%emt 0:05:35]} e6 {[%emt 0:08:36]} 17. Rd3 {[%emt 0:08:11]} Ne4 {[%emt 0:11:20]} 18. Bxg7 {[%emt 0:08:15]} Kxg7 {[%emt 0:00:08]} 19. Bf3 {[%emt 0:05:51]} Nf6 {[%emt 0:08:25]} 20. Bxb7 {[%emt 0:03:25]} Qxb7 {[%emt 0:00:08]} 21. Rf3 {[%emt 0:05:15]} Ng8 {[%emt 0:05:11]} 22. Re1 {[%emt 0:01:42][%cal Oe1e6] Black is weak on the dark squares} Qe7 $2 {[%emt 0:03:16] [#]} (22... Rae8 $11) 23. Nf5+ $1 {[%emt 0:02:40][%mdl 512]} 1-0